{"text_format":"1","workbook":"xlsx","n_sheets":4,"sheets":["Бланк Методички","Оработка","Таблица типов","Печать"],"not_rendered":{"charts":0,"images":1,"macros":1,"external_links":0,"defined_names":0,"comments":0,"pivot_tables":0},"unopened":[],"bounds":{"document_bytes":16777216,"sheet_cells":100000,"rows_first":2000,"rows_last":500,"rows_between":2000,"halvings":0,"cell_chars":16384,"cell_head_chars":4096},"cells_cut":0,"cells_raw":0,"read":"whole","date_system":"1900"}

{"sheet":"Бланк Методички","index":0,"n_rows":68,"n_cols":34,"rows_kept":68,"cut":false,"hidden":false,"merged":[[1,3,1,8],[1,10,1,11],[1,12,1,15],[56,14,56,15],[57,14,57,15],[58,14,58,15],[59,14,59,15],[60,14,60,15],[51,14,51,15],[52,14,52,15],[53,14,53,15],[54,14,54,15],[55,14,55,15],[46,14,46,15],[47,14,47,15],[48,14,48,15],[49,14,49,15],[50,14,50,15],[41,14,41,15],[42,14,42,15],[43,14,43,15],[44,14,44,15],[45,14,45,15],[37,14,37,15],[38,14,38,15],[39,14,39,15],[40,14,40,15],[31,14,31,15],[32,14,32,15],[33,14,33,15],[34,14,34,15],[35,14,35,15],[28,14,28,15],[29,14,29,15],[30,14,30,15],[21,14,21,15],[22,14,22,15],[23,14,23,15],[24,14,24,15],[25,14,25,15],[36,14,36,15],[1,0,1,2],[50,1,50,13],[18,1,18,13],[19,1,19,13],[8,1,8,13],[9,1,9,13],[10,1,10,13],[11,1,11,13],[12,1,12,13],[43,1,43,13],[3,0,6,15],[41,1,41,13],[42,1,42,13],[48,1,48,13],[49,1,49,13],[34,1,34,13],[35,1,35,13],[36,1,36,13],[37,1,37,13],[38,1,38,13],[44,1,44,13],[39,1,39,13],[40,1,40,13],[53,1,53,13],[54,1,54,13],[55,1,55,13],[56,1,56,13],[2,15,2,18],[8,14,8,15],[9,14,9,15],[10,14,10,15],[16,14,16,15],[17,14,17,15],[18,14,18,15],[19,14,19,15],[20,14,20,15],[11,14,11,15],[12,14,12,15],[13,14,13,15],[14,14,14,15],[15,14,15,15],[26,14,26,15],[27,14,27,15],[30,1,30,13],[31,1,31,13],[32,1,32,13],[33,1,33,13],[58,1,58,13],[59,1,59,13],[60,1,60,13],[13,1,13,13],[14,1,14,13],[15,1,15,13],[16,1,16,13],[17,1,17,13],[20,1,20,13],[21,1,21,13],[22,1,22,13],[23,1,23,13],[57,1,57,13],[24,1,24,13],[25,1,25,13],[26,1,26,13],[27,1,27,13],[28,1,28,13],[29,1,29,13],[45,1,45,13],[46,1,46,13],[47,1,47,13],[51,1,51,13],[52,1,52,13],[61,1,61,13],[62,1,62,13],[63,1,63,13],[64,1,64,13],[65,1,65,13],[66,1,66,13],[67,1,67,13],[61,14,61,15],[62,14,62,15],[63,14,63,15],[64,14,64,15],[65,14,65,15],[66,14,66,15],[67,14,67,15]]}
[null,null,null,null,null,null,null,null,null,null,null,null,null,null,null,null,null,null,null,null,null,null,null,null,null,null,null,null,null,null,null,null,10,"5 А"]
["Фамилия, имя",null,null,null,null,null,null,null,null,null,"Пол",null,null,null,null,null,null,null,null,null,null,null,null,null,null,null,null,null,null,null,null,null,11,"5 Б"]
[null,null,null,null,null,null,null,null,null,null,null,null,null,null,null,null,null,null,null,"Мальчик",null,null,null,null,null,null,null,null,null,null,null,null,12,"5 В"]
["Внимательно прочитайте каждый вопрос. Выберите один вариант ответа, который соответствует Вашему мнению.",null,null,null,null,null,null,null,null,null,null,null,null,null,null,null,null,null,null,"Девочка",null,null,null,null,null,null,null,null,null,null,null,null,13]
[null,null,null,null,null,null,null,null,null,null,null,null,null,null,null,null,null,null,null,null,null,null,null,null,null,null,null,null,null,null,null,null,14]
[null,null,null,null,null,null,null,null,null,null,null,null,null,null,null,null,null,null,null,null,null,null,null,null,null,null,null,null,null,null,null,null,15]
[null,null,null,null,null,null,null,null,null,null,null,null,null,null,null,null,null,null,null,null,null,null,null,null,null,null,null,null,null,null,null,null,16]
[]
[1,"Любишь ли ты шум и суету вокруг себя?"]
[2,"Часто ли ты нуждаешься в друзьях, которые могли бы тебя поддержать?",null,null,null,null,null,null,null,null,null,null,null,null,null,null,null,null,null,null,null,"Да"]
[3,"Ты всегда находишь быстрый ответ, когда тебя о чем-нибудь просят?",null,null,null,null,null,null,null,null,null,null,null,null,null,null,null,null,null,null,null,"Нет"]
[4,"Бывает ли так, что ты раздражен чем-нибудь?"]
[5,"Часто ли у тебя меняется настроение?"]
[6,"Верно ли, что тебе легче и приятнее с книгами, чем с ребятами?"]
[7,"Часто ли тебе мешают уснуть разные мысли?"]
[8,"Ты всегда делаешь так, как тебе говорят?"]
[9,"Любишь ли ты подшучивать над кем-нибудь?"]
[10,"Ты когда-нибудь чувствовал себя несчастным, хотя для этого не было настоящей причины?"]
[11,"Можешь ли ты сказать о себе, что ты веселый, живой человек?"]
[12,"Ты когда-нибудь нарушал правила поведения в школе?"]
[13,"Верно ли, что ты часто раздражен чем-нибудь?"]
[14,"Нравится ли тебе все делать в быстром темпе? (Если же наоборот, ты склонен к неторопливости, ответь «нет».)"]
[15,"Ты переживаешь из-за всяких страшных событий, которые чуть было не произошли, хотя все кончилось хорошо?"]
[16,"Ты можешь доверить любую тайну?"]
[17,"Можешь ли ты без особого труда внести оживление в скучную компанию сверстников?"]
[18,"Бывает ли так, что у тебя без всякой причины (физические нагрузки) сильно бьется сердце?"]
[19,"Делаешь ли ты обычно первый шаг для того, чтобы подружиться с кем-нибудь?"]
[20,"Ты когда-нибудь говорил неправду?"]
[21,"Ты легко расстраиваешься, когда критикуют тебя и твою работу?"]
[22,"Ты часто шутишь и рассказываешь смешные истории своим друзьям?"]
[23,"Ты часто чувствуешь себя усталым?"]
[24,"Ты всегда сначала делаешь уроки, а все остальное потом?"]
[25,"Ты обычно весел и всем доволен?"]
[26,"Обидчив ли ты?"]
[27,"Ты очень любишь общаться с другими ребятами?"]
[28,"Всегда ли ты выполняешь просьбы родных о помощи по хозяйству?"]
[29,"У тебя бывают головокружения?"]
[30,"Бывает ли так, что твои действия и поступки ставят других людей в неловкое положение?"]
[31,"Ты часто чувствуешь, что тебе что-нибудь надоело?"]
[32,"Любишь ли ты иногда похвастаться?"]
[33,"Ты чаще всего сидишь и молчишь, когда попадаешь в общество незнакомых людей?"]
[34,"Волнуешься ли ты иногда так, что не можешь усидеть на месте?"]
[35,"Ты обычно быстро принимаешь решения?"]
[36,"Ты никогда не шумишь в классе, даже когда нет учителя?"]
[37,"Тебе часто снятся страшные сны?"]
[38,"Можешь ли ты дать волю чувствам и повеселиться в обществе друзей?"]
[39,"Тебя легко огорчить?"]
[40,"Случалось ли тебе плохо говорить о ком-нибудь?"]
[41,"Верно ли, что ты обычно говоришь и действуешь быстро, не особенно обдумывая?"]
[42,"Если ты оказываешься в глупом положении, то потом долго переживаешь?"]
[43,"Тебе очень нравятся шумные и веселые игры?"]
[44,"Ты всегда ешь то, что тебе подают?"]
[45,"Тебе трудно ответить «нет», когда тебя о чем-нибудь просят?"]
[46,"Ты любишь часто ходить в гости?"]
[47,"Бывают ли такие моменты, когда тебе не хочется жить?"]
[48,"Был ли ты когда-нибудь груб с родителями?"]
[49,"Считают ли тебя ребята веселым и живым человеком?"]
[50,"Ты часто отвлекаешься, когда делаешь уроки?"]
[51,"Ты чаще сидишь и смотришь, чем принимаешь активное участие в общем веселье?"]
[52,"Тебе обычно бывает трудно уснуть из-за разных мыслей?"]
[53,"Бываешь ли ты совершенно уверен, что сможешь справиться с делом, которое должен выполнить?"]
[54,"Бывает ли, что ты чувствуешь себя одиноким?"]
[55,"Ты стесняешься заговорить первым с новыми людьми?"]
[56,"Ты часто спохватываешься, когда уже поздно что-нибудь исправить?"]
[57,"Когда кто-нибудь из ребят кричит на тебя, ты тоже кричишь в ответ?"]
[58,"Бывает ли так, что иногда ты чувствуешь себя веселым или печальным без всякой причины?"]
[59,"Ты считаешь, что трудно получить настоящее удовольствие от оживленной компании сверстников?"]
[60,"Тебе часто приходится волноваться из-за того, что ты сделал что-нибудь не подумав?"]

{"sheet":"Оработка","index":1,"n_rows":31,"n_cols":13,"rows_kept":31,"cut":false,"hidden":true,"merged":[[22,7,22,10],[23,7,23,10],[24,7,24,10],[25,7,25,10],[0,0,0,3],[0,5,0,6],[0,7,0,8]]}
["Ответы",null,null,null,null,"Экстраверсия (Э)",null,false,null,null,"Шкалы","Ответ \"Да\"","Ответ \"Нет\""]
[1,{"$f":"IF('Бланк Методички'!O9='Бланк Методички'!$V$10,1,0)","v":0},31,{"$f":"IF('Бланк Методички'!O39='Бланк Методички'!$V$10,1,0)","v":0},null,"Да","Нет","Да","Нет",null,"Экстраверсия (Э)","1, 3, 9, 11, 14, 17, 19, 22, 25, 27, 30, 35, 38, 41, 43, 46, 49, 53, 57","6, 33, 51, 55, 59"]
[2,{"$f":"IF('Бланк Методички'!O10='Бланк Методички'!$V$10,1,0)","v":0},32,{"$f":"IF('Бланк Методички'!O40='Бланк Методички'!$V$10,1,0)","v":0},null,{"$f":"B2","v":0},{"$f":"IF(B7=0,1,0)","v":1},{"$f":"B9","v":0},{"$f":"IF(B5=0,1,0)","v":1},null,"Нейротизм (Н)","2, 5, 7, 10, 13, 15, 18, 21, 23, 26, 29, 31, 34, 37, 39, 42, 45, 47, 50, 52, 54, 56, 58, 60"]
[3,{"$f":"IF('Бланк Методички'!O11='Бланк Методички'!$V$10,1,0)","v":0},33,{"$f":"IF('Бланк Методички'!O41='Бланк Методички'!$V$10,1,0)","v":0},null,{"$f":"B4","v":0},{"$f":"IF(D4=0,1,0)","v":1},{"$f":"B17","v":0},{"$f":"IF(B13=0,1,0)","v":1},null,"\"Ложь\"","8, 16, 24, 28, 36, 44","4, 12, 20, 32, 40, 48"]
[4,{"$f":"IF('Бланк Методички'!O12='Бланк Методички'!$V$10,1,0)","v":0},34,{"$f":"IF('Бланк Методички'!O42='Бланк Методички'!$V$10,1,0)","v":0},null,{"$f":"B10","v":0},{"$f":"IF(D22=0,1,0)","v":1},{"$f":"B25","v":0},{"$f":"IF(B21=0,1,0)","v":1}]
[5,{"$f":"IF('Бланк Методички'!O13='Бланк Методички'!$V$10,1,0)","v":0},35,{"$f":"IF('Бланк Методички'!O43='Бланк Методички'!$V$10,1,0)","v":0},null,{"$f":"B12","v":0},{"$f":"IF(D26=0,1,0)","v":1},{"$f":"B29","v":0},{"$f":"IF(D3=0,1,0)","v":1}]
[6,{"$f":"IF('Бланк Методички'!O14='Бланк Методички'!$V$10,1,0)","v":0},36,{"$f":"IF('Бланк Методички'!O44='Бланк Методички'!$V$10,1,0)","v":0},null,{"$f":"B15","v":0},{"$f":"IF(D30=0,1,0)","v":1},{"$f":"D7","v":0},{"$f":"IF(D11=0,1,0)","v":1}]
[7,{"$f":"IF('Бланк Методички'!O15='Бланк Методички'!$V$10,1,0)","v":0},37,{"$f":"IF('Бланк Методички'!O45='Бланк Методички'!$V$10,1,0)","v":0},null,{"$f":"B18","v":0},null,{"$f":"D15","v":0},{"$f":"IF(D19=0,1,0)","v":1}]
[8,{"$f":"IF('Бланк Методички'!O16='Бланк Методички'!$V$10,1,0)","v":0},38,{"$f":"IF('Бланк Методички'!O46='Бланк Методички'!$V$10,1,0)","v":0},null,{"$f":"B20","v":0}]
[9,{"$f":"IF('Бланк Методички'!O17='Бланк Методички'!$V$10,1,0)","v":0},39,{"$f":"IF('Бланк Методички'!O47='Бланк Методички'!$V$10,1,0)","v":0},null,{"$f":"B23","v":0}]
[10,{"$f":"IF('Бланк Методички'!O18='Бланк Методички'!$V$10,1,0)","v":0},40,{"$f":"IF('Бланк Методички'!O48='Бланк Методички'!$V$10,1,0)","v":0},null,{"$f":"B26","v":0}]
[11,{"$f":"IF('Бланк Методички'!O19='Бланк Методички'!$V$10,1,0)","v":0},41,{"$f":"IF('Бланк Методички'!O49='Бланк Методички'!$V$10,1,0)","v":0},null,{"$f":"B28","v":0}]
[12,{"$f":"IF('Бланк Методички'!O20='Бланк Методички'!$V$10,1,0)","v":0},42,{"$f":"IF('Бланк Методички'!O50='Бланк Методички'!$V$10,1,0)","v":0},null,{"$f":"B31","v":0}]
[13,{"$f":"IF('Бланк Методички'!O21='Бланк Методички'!$V$10,1,0)","v":0},43,{"$f":"IF('Бланк Методички'!O51='Бланк Методички'!$V$10,1,0)","v":0},null,{"$f":"D6","v":0}]
[14,{"$f":"IF('Бланк Методички'!O22='Бланк Методички'!$V$10,1,0)","v":0},44,{"$f":"IF('Бланк Методички'!O52='Бланк Методички'!$V$10,1,0)","v":0},null,{"$f":"D9","v":0}]
[15,{"$f":"IF('Бланк Методички'!O23='Бланк Методички'!$V$10,1,0)","v":0},45,{"$f":"IF('Бланк Методички'!O53='Бланк Методички'!$V$10,1,0)","v":0},null,{"$f":"D12","v":0}]
[16,{"$f":"IF('Бланк Методички'!O24='Бланк Методички'!$V$10,1,0)","v":0},46,{"$f":"IF('Бланк Методички'!O54='Бланк Методички'!$V$10,1,0)","v":0},null,{"$f":"D14","v":0}]
[17,{"$f":"IF('Бланк Методички'!O25='Бланк Методички'!$V$10,1,0)","v":0},47,{"$f":"IF('Бланк Методички'!O55='Бланк Методички'!$V$10,1,0)","v":0},null,{"$f":"D17","v":0}]
[18,{"$f":"IF('Бланк Методички'!O26='Бланк Методички'!$V$10,1,0)","v":0},48,{"$f":"IF('Бланк Методички'!O56='Бланк Методички'!$V$10,1,0)","v":0},null,{"$f":"D20","v":0}]
[19,{"$f":"IF('Бланк Методички'!O27='Бланк Методички'!$V$10,1,0)","v":0},49,{"$f":"IF('Бланк Методички'!O57='Бланк Методички'!$V$10,1,0)","v":0},null,{"$f":"D24","v":0}]
[20,{"$f":"IF('Бланк Методички'!O28='Бланк Методички'!$V$10,1,0)","v":0},50,{"$f":"IF('Бланк Методички'!O58='Бланк Методички'!$V$10,1,0)","v":0},null,{"$f":"D28","v":0}]
[21,{"$f":"IF('Бланк Методички'!O29='Бланк Методички'!$V$10,1,0)","v":0},51,{"$f":"IF('Бланк Методички'!O59='Бланк Методички'!$V$10,1,0)","v":0}]
[22,{"$f":"IF('Бланк Методички'!O30='Бланк Методички'!$V$10,1,0)","v":0},52,{"$f":"IF('Бланк Методички'!O60='Бланк Методички'!$V$10,1,0)","v":0},null,null,null,"Нормативы для подростков 12-17 лет"]
[23,{"$f":"IF('Бланк Методички'!O31='Бланк Методички'!$V$10,1,0)","v":0},53,{"$f":"IF('Бланк Методички'!O61='Бланк Методички'!$V$10,1,0)","v":0},null,{"$f":"K2","v":"Экстраверсия (Э)"},{"$f":"SUM(F3:F21)+SUM(G3:G7)","v":5},"11 - 14"]
[24,{"$f":"IF('Бланк Методички'!O32='Бланк Методички'!$V$10,1,0)","v":0},54,{"$f":"IF('Бланк Методички'!O62='Бланк Методички'!$V$10,1,0)","v":0},null,"Нейротизм (Н)",{"$f":"SUM(B3,B6,B8,B11,B14,B16,B19,B22,B24,B27,B30,D2,D5,D8,D10,D13,D16,D18,D21,D23,D25,D27,D29,D31)","v":0},"4 - 5"]
[25,{"$f":"IF('Бланк Методички'!O33='Бланк Методички'!$V$10,1,0)","v":0},55,{"$f":"IF('Бланк Методички'!O63='Бланк Методички'!$V$10,1,0)","v":0},null,"\"Ложь\"",{"$f":"SUM(H3:H8)+SUM(I3:I8)","v":6},"10 - 15"]
[26,{"$f":"IF('Бланк Методички'!O34='Бланк Методички'!$V$10,1,0)","v":0},56,{"$f":"IF('Бланк Методички'!O64='Бланк Методички'!$V$10,1,0)","v":0}]
[27,{"$f":"IF('Бланк Методички'!O35='Бланк Методички'!$V$10,1,0)","v":0},57,{"$f":"IF('Бланк Методички'!O65='Бланк Методички'!$V$10,1,0)","v":0}]
[28,{"$f":"IF('Бланк Методички'!O36='Бланк Методички'!$V$10,1,0)","v":0},58,{"$f":"IF('Бланк Методички'!O66='Бланк Методички'!$V$10,1,0)","v":0},null,"Тип:",{"$f":"IF(AND(G24>=0,G24<=4,G25>=0,G25<=4),1,IF(AND(G24>=20,G24<=24,G25>=0,G25<=4),2,IF(AND(G24>=20,G24<=24,G25>=20,G25<=24),3,IF(AND(G24>=0,G24<=4,G25>=20,G25<=24),4,IF(AND(G24>=0,G24<=4,G25>=4,G25<=8),5,IF(AND(G24>=0,G24<=4,G25>=16,G25<=20),6,IF(AND(G24>=0,G24<=4,G25>=8,G25<=16),7,IF(AND(G24>=4,G24<=8,G25>=0,G25<=4),8,IF(AND(G24>=8,G24<=16,G25>=0,G25<=4),9,IF(AND(G24>=16,G24<=20,G25>=0,G25<=4),10,IF(AND(G24>=20,G24<=24,G25>=4,G25<=8),11,IF(AND(G24>=20,G24<=24,G25>=8,G25<=16),12,IF(AND(G24>=20,G24<=24,G25>=16,G25<=20),13,IF(AND(G24>=16,G24<=20,G25>=20,G25<=24),14,IF(AND(G24>=8,G24<=16,G25>=20,G25<=24),15,IF(AND(G24>=4,G24<=8,G25>=20,G25<=24),16,IF(AND(G24>=16,G24<=20,G25>=4,G25<=8),17,IF(AND(G24>=4,G24<=8,G25>=4,G25<=8),18,IF(AND(G24>=4,G24<=8,G25>=4,G25<=8),19,IF(AND(G24>=16,G24<=20,G25>=16,G25<=20),20,IF(AND(G24>=12,G24<=16,G25>=8,G25<=12),21,IF(AND(G24>=8,G24<=12,G25>=8,G25<=12),22,IF(AND(G24>=16,G24<=20,G25>=8,G25<=12),23,IF(AND(G24>=12,G24<=16,G25>=4,G25<=8),24,IF(AND(G24>=8,G24<=12,G25>=4,G25<=8),25,IF(AND(G24>=4,G24<=8,G25>=8,G25<=12),26,IF(AND(G24>=4,G24<=8,G25>=12,G25<=16),27,IF(AND(G24>=8,G24<=12,G25>=4,G25<=8),28,IF(AND(G24>=12,G24<=16,G25>=16,G25<=20),29,IF(AND(G24>=16,G24<=20,G25>=12,G25<=16),30,IF(AND(G24>=8,G24<=12,G25>=12,G25<=16),31,IF(AND(G24>=12,G24<=16,G25>=12,G25<=16),32))))))))))))))))))))))))))))))))","v":8}]
[29,{"$f":"IF('Бланк Методички'!O37='Бланк Методички'!$V$10,1,0)","v":0},59,{"$f":"IF('Бланк Методички'!O67='Бланк Методички'!$V$10,1,0)","v":0}]
[30,{"$f":"IF('Бланк Методички'!O38='Бланк Методички'!$V$10,1,0)","v":0},60,{"$f":"IF('Бланк Методички'!O68='Бланк Методички'!$V$10,1,0)","v":0}]

{"sheet":"Таблица типов","index":2,"n_rows":65,"n_cols":2,"rows_kept":65,"cut":false,"hidden":true,"merged":[[0,0,0,1],[3,0,3,1],[7,0,7,1],[13,0,13,1],[19,0,19,1],[37,0,37,1],[43,0,43,1],[49,0,49,1],[47,0,47,1],[35,0,35,1],[39,0,39,1],[41,0,41,1],[45,0,45,1],[21,0,21,1],[23,0,23,1],[33,0,33,1],[25,0,25,1],[31,0,31,1],[27,0,27,1],[29,0,29,1],[5,0,5,1],[9,0,9,1],[11,0,11,1],[15,0,15,1],[17,0,17,1],[51,0,51,1],[53,0,53,1],[57,0,57,1],[59,0,59,1],[63,0,63,1],[55,0,55,1],[61,0,61,1]]}
["Тип № 1. Э: 0-4; Н: 0-4"]
["Характерологические проявления","Путь коррекции"]
["Безмятежный, мирный, невозмутимый. В группе скромен. Дружбу не навязывает, но и не отвергает, если ему предложат. Склонен к упрямству, если ощущает свою правоту. Не смешлив. Речь спокойная. Терпелив. Хладнокровен.","Воспитателей беспокоят мало, а значит, всегда страдают от невнимания педагогов, тренеров, начальников. Главное в подходе – повысить самооценку, привлекая внимание группы к данному человеку. Желательно, чтобы у индивида была возможность выбора темпа работы. Необходимо подчеркивать ценность таких качеств, как скромность, хладнокровие."]
["Тип № 2. Э: 20-24; Н: 0-4"]
["Радостный, общительный, разговорчивый. Любит быть на виду. Оптимист, верит в успех. Легко прощает обиды, превращает конфликты в шутку. Впечатлителен, любит новизну. Пользуется общей любовью. Однако поверхностен, беспечен, прихотлив. Артистичен. Не умеет добиваться результата (увлекается, но быстро остывает).","Воспитателей беспокоят мало, а значит, всегда страдают от невнимания педагогов, тренеров, начальников. Главное в подходе – повысить самооценку, привлекая внимание группы к данному человеку. Желательно, чтобы у индивида была возможность выбора темпа работы. Необходимо подчеркивать ценность таких качеств, как скромность, хладнокровие."]
["Тип № 3. Э: 20-24; Н: 20-24"]
["Активный, имеет хорошо развитые бойцовские качества. Насмешлив. Стремится общаться со всеми на равных. Очень честолюбив. В случае несогласия с позицией более старшего принимает активную противоборствующую позицию. Не выносит безразличия к себе.","Основная тактика – подчеркнутое уважение. Взаимоотношения следует строить на убеждении, спокойном, доброжелательном тоне общения. При аффективном поведении возможна ироническая реакция. Не следует выяснять отношения в момент конфликта. Лучше обсудить проблемы позже, в спокойной ситуации. При этом желательно акцентировать внимание на проблеме и на возможности решить ее без особого эмоционального напряжения. Подросткам данного типа необходимо дать возможность проявить организаторские способности, а также реализовать энергетический потенциал (спортивные достижения и т.п.)."]
["Тип № 4. Э: 0-4; Н: 20-24"]
["Тип неспокойный, настороженный, неуверенный в себе. Ищет опеки. Необщителен, поэтому имеет смещенные оценки и самооценки. Высокоранимый. Адаптация идет длительное вемя, поэтому действия замедленны. Не любит активный образ жизни. Созерцатель. Часто бывает склонен к философии. Легко драматизирует ситуацию.","Стремиться поддержать. Оградить от насмешек. Выделять положительные стороны (вдумчивость, склонность к монотонной деятельности). Подобрать деятельность, не требующую активного общения, строгой временной регламентации, а также не включенную в жесткую систему субординации. Активизировать интерес к окружающим. Исподволь сводить с людьми доброжелательно-энергичными."]
["Тип № 5. Э: 0-4; Н: 4-8"]
["Созерцателен, спокоен. Имеет низкий уровень заинтересованности в реальной жизни, а значит, и низкие достижения. Направлен на внутренние выдуманные или вычитанные коллизии. Послушно-безразличен.","Остро нуждается в повышении самооценки, это разрушает безразличие и повышает уровень притязаний, а, следовательно, качество работы или учебы. Желательно найти сильные стороны (способности, задатки), чтобы как-то увлечь работой."]
["Тип №6. Э: 0-4; Н: 16-20"]
["Сдержанный, робкий, чувствительный, стесняется в незнакомой ситуации. Неуверенный, мечтательный. Любит философствовать, не любит многолюдья. Склонен к сомнениям. Мало верит в свои силы. В целом уравновешен. Не склонен паниковать и драматизировать ситуацию. Тревожный. Часто пребывает в нерешительности, склонен к фантазиям.","Стараться поддерживать, опекать, подчеркивать перед группой положительные качества и проявления (серьезность, воспитанность, чуткость). Можно увлечь идеей (например, помощи кому-то более слабому). Этоповысит самооценку, даст повод к более оптимистическому ощущению жизни."]
["Тип №7. Э: 0-4; Н: 8-16"]
["Человек скромный, активный, направленный на дело. Справедливый, преданный друг. Очень хороший, умелый помощник, но плохой организатор. Застенчив. Предпочитает оставаться в тени. В компаниях, как правило, не состоит. Дружит вдвоем. Взаимоотношениям придает большое значение. Иногда скучновато-морализирующий.","В деятельности желательно предоставить свободный режим; поощрять, это активизирует инициативу. Постараться помочь раскрепоститься, чтобы действовал самостоятельно, а не по указке (по природе подчиняем). Избегать публичной критики. Внушать уверенность в своих силах и правах. Не допускать слепой веры в чейлибо авторитет."]
["Тип №8. Э: 4-8; Н: 0-4"]
["Человек спокойный, склонный к общению в компаниях. Эстетически одаренный. Скорее созерцатель, чем деятель. Уравновешенный. Безразличен к успехам. Любит жить «как все». Во взаимоотношениях ровен, но глубоко переживать не умеет. Легко избегает конфликтов.","Главная задача – активизировать потребность к деятельности. Найти занятие, способное заинтересовать его (скорее это нечто, связанное с художественными проявлениями). Поощрять успехи. Желательно чаще общаться с подростком, обращая внимание на развитие социального интеллекта."]
["Тип №9. Э: 8-16; Н: 0-4"]
["Активный, жизнерадостный. Общительный. В общении неразборчив. Легко попадает в асоциальные группировки вследствие плохой сопротивляемости дезорганизующим условиям. Склонен к новизне, любознательный. Социальный интеллект развит слабо. Не развито умение выносить адекватные оценки и самооценки. Часто не имеет твердых принципиальных установок. Энергичен. Доверчив","Режим желателен более жесткий, мобилизующий. Установить доброжелательные отношения, но подросток должен чувствовать, что за ним наблюдают. Стремиться направлять энергию на полезное дело (например, увлечь глобальной идеей достичь чего-то – поступить в вуз и т. п.). Однако в этом случае необходимо распла нировать предстоящую работу, фиксировать сроки и объемы и жестко контролировать выполнение. Подростка данного типа желательно ввести в состав группы или бригады с сильным лидером и позитивными установками."]
["Тип №10. Э: 16-20; Н: 0-4"]
["Артистичен. Любит рассказывать. Недостаточно настойчив. Общителен. Неглубок. Уравновешен.","Поддерживать усилия, направленные на достижение интересных целей (у самого хватает инициативы выбрать какое-то занятие или цель, но не хватает упорства). Поощрять артистизм, но не допускать до клоунства."]
["Тип №11. Э: 20-24; Н: 4-8"]
["Активный, общительный, благородный, честолюбивый. Легко соглашается на рискованные развлечения. Не всегда разборчив в друзьях, в средствах достижения цели. Благороден. Часто бывает эгоистичен. Обаятелен. Имеет организаторские склонности.","Поощрять и развивать организаторские склонности. Может быть лидером, но нуждается в контроле. Удерживать от зазнайства. Лидерское положение в коллективе легко выправляет разболтанность, лень. Любит быть «на коне». В случае необходимости можно допускать коллективную критику."]
["Тип №12. Э: 20-24; Н: 8-16"]
["Легко подчиняется дисциплине. Обладает чувством собственного достоинства. Организатор. Склонен к искусству, спорту. Активен. Влюбчив. Легко увлекается людьми и событиями. Впечатлителен.","Лидер по натуре, как в эмоциональной, так и в деловой сфере. Необходимо поддерживать лидерские усилия, помогать, направлять в деловом и личностном плане."]
["Тип №13. Э: 20-24; Н: 16-20"]
["Сложный тип. Тщеславен. Энергичен. Жизнерадостен. Как правило, не имеет высокой духовной направленности. Погружен в житейские радости. Во главу угла ставит бытовые потребности. Преклоняется перед подвижностью. Всеми силами стремится достичь удачи, успеха, выгоды. Презирает неудачников. Общительный, демонстративный. Жестко выдвигает свои требования.","Цель старшего – держать подростка «в рамках», так как тот склонен зазнаваться, подчинять себе окружающих. Действовать лучше спокойно и твердо. Выделять других, подчеркивая их положительные личностные качества. Можно предложить роль организатора, при этом требовать выполнения обязанностей. Желательно эстетическое воспитание."]
["Тип №14. Э: 16-20; Н: 20-24"]
["Властный, мнительный, подозрительный, педантичный. Всегда стремится к первенству. Мелочный. Наслаждается любым проявлением превосходства. Язвительно-желчен. Склонен к насмешке над более слабыми. Мстителен, пренебрежителен, деспотичен. Легко утомляется.","Нельзя относиться равнодушно. Можно относиться дружелюбно, можно – с иронией. Нужно дать возможность занять лидерское положение, однако при этом следует выбрать пост, на котором он больше внимания уделял бы бумагам, чем людям. Поощрять волю и упорство. При этом подростку желательно воспитывать в себе позитивное эмоциональное отношение к окружающим и позитивные установки."]
["Тип №15. Э: 8-16; Н: 20-24"]
["Вечно недовольный, ворчливый, склонный к придиркам. Мелочно-требовательный. К язвительности не склонен. Легко обижается по пустякам. Часто бывает хмурым, раздражительным. Завистлив. В делах неуверенный. В отношениях – подчиненный. Перед трудностями пасует. В группе, классе держится в стороне. Злопамятен. Друзей не имеет. Сверстниками командует. Голос тихий, резкий.","Желательно наладить хотя бы минимальные взаимоотношения. Это легче сделать, основываясь на мнительности данного человека. Можно интересоваться его самочувствием, успехами в доверительной беседе. В качестве общественной нагрузки, позволяющей иметь опору во взаимоотношениях, можно дать канцелярскую работу (педантические свойства позволят делать ее хорошо). Поощрить за исполнительность при всем коллективе, что позволит как-то наладить отношения со сверстниками. Подростки такого типа требуют постоянного внимания и индивидуального взаимодействия."]
["Тип №16. Э: 4-8; Н: 20-24"]
["Высокочувствительный тип, недоверчивый, затаенно-страстный, молчаливый, замкнуто-обидчивый. Самолюбивый, независимый, отличается критическим складом ума. Пессимист. Склонен к обобщенному мышлению. Часто бывает не уверен в себе.","В подходе желательны оберегающий режим, поощрения при одноклассниках, доброжелательность, уважительность. Следует поддерживать справедливые критические суждения, но избегать развития у подростка морализирования и критиканства."]
["Тип №17. Э: 16-20; Н: 4-8"]
["Очень эмоционален. Восторженный, жизнерадостный, общительный, влюбчивый. В контактах неразборчив, дружески настроен ко всем. Непостоянен, наивен, ребячлив, нежен. Пользуется симпатией окружающих. Фантазер. Не стремится к лидерству, предпочитая интимно-дружеские связи.","Поддерживать положительный настрой. Желательно развивать эстетические склонности, поддерживать увлечения (поощрять, интересоваться, предлагать выступить перед классом, группой). Обратить внимание на выработку волевых качеств (настойчивости, уровня притязаний)."]
["Тип №18. Э: 4-8; Н: 16-20"]
["Эмпатичный. Очень жалостливый, склонный поддерживать слабых, предпочитает интимно-дружеские контакты. Настроение чаще бывает спокойное, пониженное. Скромный. Застенчив. Не уверен в себе. Созерцатель. Легко становится настороженным и подозрительным в неблагоприятных условиях.","Рекомендуется наладить щадяще-развивающий режим. Контролировать исподволь, относиться спокойно, доброжелательно. Помогать в трудных ситуациях, которыми в данном случае являются достижение цели, формирование активной позиции, налаживание контактов (со сверстниками и взрослыми). Исключить публичное обсуждение, если возможны негативные оценки."]
["Тип №19. Э: 4-8; Н: 4-8"]
["Спокойный тип. Молчаливый, рассудительный. Замедленно-деятельный, очень последовательный, самостоятельный, независимый, кропотливый. Беспристрастный, скромный, малоэмоциональный. Иногда бывает отвлечен от реальности.","У подростков данного типа надо постараться повысить самооценку, развить систему притязаний, раскрыть склонности и способности. Заинтересовать чем-то можно, дав какую-либо работу с высокой личной ответственностью (деятельность должна быть связана больше с бумагами, чем с людьми). Подростки такого типа нуждаются в советах по разным вопросам, но выраженных в деликатной форме."]
["Тип №20. Э: 16-20; Н: 16-20"]
["Очень демонстративен, не умеет сопереживать. Эмоционально беден. Любит противопоставлять себя коллективу. Очень напорист в достижении значимых для себя ценностей. Ценит престиж. Часто бывает фальшив. Практичен.","Режим взаимодействия мягкий, терпимый, чтобы не обострять негативные качества. Вовлечь в спортивные или технические занятия, чтобы подростки могли перевести энергетику в позитивное русло, а потребность в борьбе за первенство – в приемлемую форму. Желательно эстетическое воспитание. Необходимо вовлекать в позитивные социальные группы с сильным влиятельным лидером."]
["Тип №21. Э: 12-16; Н: 8-12"]
["Очень энергичен, жизнерадостен. Любимец публики. Считается, что подростки такого типа счастливцы. Действительно, они часто очень одарены, легко учатся, артистичны, неутомимы. Однако наличие этих качеств часто имеет негативные результаты. Подростки (молодые люди) с детства привыкают, что им все доступно. В результате не учатся серьезно работать над достижением цели. Легко все бросают, часто прерывают дружбу. Поверхностны. Имеют довольно низкий социальный интеллект.","Требуют доброжелательного отношения. В коллективе не стоит выбирать на лидерские должности (лучше почаще предлагать разовые поручения организаторского типа). Строго требовать выполнения поручений. Желательно вместе с подростком найти какую-то значимую цель (например, овладеть иностранным языком), разбить на периоды срок исполнения, расписать по времени задачи и контролировать выполнение. Это, с одной стороны, поможет добиться поставленной цели, а с другой стороны, приучит к упорядоченной работе."]
["Тип №22. Э: 8-12; Н: 8-12"]
["Очень пассивно-безразличный. Уверен в себе. В отношении к окружающим жестко требователен. Злопамятен. Часто проявляет пассивное упрямство. Очень педантичен, мелочен. Рассудителен, хладнокровен. К чужому мнению относится безразлично. Ригиден, предпочитает привычные дела и монотонность быта. Интонации речи маловыразительны. Малоэстетичен.","Создать у подростка ощущение, что он интересен воспитателю (тренеру и т. д.). Следует интересоваться мелочами быта, самочувствия. Среди общественных поручений желательно выбрать что-то, требующее аккуратного исполнения (ведение журнала или табеля, учет чего-то и т. п.). Необходимо хвалить за исполнительность. Помогать в выборе занятий (желательно индивидуальные, а не групповые виды спорта или художественной самодеятельности)."]
["Тип №23. Э: 16-20; Н: 8-12"]
["Общительный, активный, инициативный, увлекающийся. При этом умеет управлять собой. Умеет добиваться намеченной цели. Честолюбив. Любит лидировать и умеет быть организатором. Пользуется доверием и искренним уважением окружающих. Характер легкий. Эстетичен, ровно оживлен.","Создать возможность для лидерства. Помогать в решении групповых и индивидуальных задач. Следить за тем, чтобы нагрузка (учебная, производственная и общественная) была в разумных пределах."]
["Тип №24. Э: 12-16; Н: 4-8"]
["Активный, уравновешенный тип. Энергичен. Среднеобщителен. Привязчив к немногочисленным друзьям. Упорядочен. Умеет ставить перед собой задачи и добиваться решений. Не склонен к соперничеству. Иногда обидчив.","Предпочитает спокойное доверительное отношение окружающих. Желательно отлаживание четких деловых контактов."]
["Тип №25. Э: 8-12; Н: 4-8"]
["Активный, иногда взрывчатый, иногда беспечно-веселый. Часто бывает спокойно-безразличен. Инициативы почти не проявляет, действует по указке. Пассивен в социальных контактах. К глубоким эмоциональным переживаниям не расположен. Склонен к монотонной кропотливой работе.","Желательно спокойно-деловое отношение. Лучше находить и рекомендовать индивидуальные занятия. Такие люди хорошо справляются с административной работой."]
["Тип №26. Э: 4-8; Н: 8-12"]
["Спокоен, уравновешен, терпелив, педантичен. Честолюбив. Целеустремлен. Имеет твердые принципы. Временами обидчив.","Такие люди любят доверительные отношения, спокойный темп работы. Не склонны к панибратству. Желательно поощрять при классе (группе) за аккуратность, исполнительность. Работать над повышением уверенности в своих действиях."]
["Тип №27. Э: 4-8; Н: 12-16"]
["Уравновешенно-меланхоличный. Тонко чувствующий. Привязчивый; ценит доверительно-интимные отношения, спокойный. Ценит юмор. В целом – оптимист. Иногда паникует, иногда впадает в депрессии. Однако чаще спокойно-задумчив.","Создать обстановку активно-спокойной деятельности. Желательно избегать жесткой регламентации. Рекомендовать эстетические и литературные понятия."]
["Тип №28. Э: 8-12; Н: 16-20"]
["Меланхоличный, честолюбивый, упорный, серьезный. Иногда склонен к уныло-тревожному настроению. Дружит с немногочисленным кругом людей. Необидчив, но иногда мнителен. Самостоятелен в решениях относительно принципиальных вопросов, но зависим от близких в эмоциональной жизни.","Рекомендуется направлять усилия на повышение самооценки, укреплять уверенность в себе."]
["Тип №29. Э: 12-16; Н: 16-20"]
["Жестко требователен к окружающим: упрям, горд, очень честолюбив. Энергичен, общителен, часто пребывает в боевитом настроении. Неудачи скрывает. Любит быть на виду. Хладнокровен.","Взаимоотношения строить на основе уважения, высокой требовательности. Можно посмеиваться над недостатками, если подросток заносчив."]
["Тип №30. Э: 16-20; Н: 12-16"]
["Гордый, стремится к первенству, злопамятен. Стремится к лидерству во всем. Энергичен, упорен. Спокойный, расчетливый. Любит риск, непреклонен в достижениях. Не лишен артистизма, хотя и суховат.","Не допускать зазнайства. Поддерживать в позитивных усилиях. Помогать в лидерстве, не допускать командный стиль отношений. Нейтрализовать озлобленность. Развивать социальный интеллект."]
["Тип №31. Э: 8-12; Н: 12-16"]
["Застенчив, не завистлив, стремится к самостоятельности, привязчив. Доброжелателен. С близкими людьми проявляет наблюдательность, чувство юмора. Склонен к глубоким доверительным отношениям. Избегает ситуаций риска, опасности. Не выносит навязанный темп. Иногда склонен к быстрым решениям. Часто раскаивается в своих поступках. В неудачах обвиняет только себя.","Обеспечить спокойную, доброжелательную обстановку. Стараться вовлекать в активное решение деловых вопросов. Поощрять социальную активность, вовлекать в участие в каких-либо мероприятиях (семинарах, конференциях и т. п.)."]
["Тип №32. Э: 12-16; Н: 12-16"]
["Честолюбив, неудачи не снижают уверенности в себе. Заносчив. Злопамятен. Энергичен. Упорен. Целеустремлен. Склонен к конфликтности. Не уступает, даже если не прав. Мук совести не испытывает. В общении не склонен к сопереживанию. Ценит только информативность. Эмоционально ограниченный тип.","Не поддерживать в конфликтных ситуациях. Воздействовать через честолюбие. Отношения поддерживать ровные, пытаясь исподволь развивать социальный интеллект."]

{"sheet":"Печать","index":3,"n_rows":42,"n_cols":8,"rows_kept":42,"cut":false,"hidden":false,"merged":[[2,7,2,8],[6,3,6,4],[7,3,7,4],[41,5,41,8],[0,0,0,8],[3,1,3,2],[2,1,2,5],[6,5,6,8],[7,5,7,8],[8,5,8,8],[26,0,26,8],[10,0,10,8],[11,0,11,8],[5,0,5,2],[5,3,5,4],[5,5,5,8],[6,0,6,2],[27,0,39,8],[12,0,24,8],[7,0,7,2],[8,0,8,2],[8,3,8,4]]}
["Экспресс-диагностика характерологических особенностей личности (Н.Айзенк в модификации Т.В.Матолиной)"]
[]
["ФИО",{"$f":"PROPER('Бланк Методички'!D2)","v":""},null,null,null,null,{"$f":"'Бланк Методички'!K2","v":"Пол"},{"$f":"'Бланк Методички'!M2","v":0}]
["Дата",{"$f":"TODAY()","v":"2019-03-01"}]
[]
["Шкала",null,null,"Баллы",null,"Норма для подростка 12 - 17 лет"]
[{"$f":"Оработка!F24","v":"Экстраверсия (Э)"},null,null,{"$f":"Оработка!G24","v":5},null,{"$f":"Оработка!H24","v":"11 - 14"}]
[{"$f":"Оработка!F25","v":"Нейротизм (Н)"},null,null,{"$f":"Оработка!G25","v":0},null,{"$f":"Оработка!H25","v":"4 - 5"}]
[{"$f":"Оработка!F26","v":"\"Ложь\""},null,null,{"$f":"Оработка!G26","v":6},null,{"$f":"Оработка!H26","v":"10 - 15"}]
[]
["Интерпретация психологического типа"]
["Характерологические проявления:"]
[{"$f":"IF(Оработка!G29=1,'Таблица типов'!A3,IF(Оработка!G29=2,'Таблица типов'!A5,IF(Оработка!G29=3,'Таблица типов'!A7,IF(Оработка!G29=4,'Таблица типов'!A9,IF(Оработка!G29=5,'Таблица типов'!A11,IF(Оработка!G29=6,'Таблица типов'!A13,IF(Оработка!G29=7,'Таблица типов'!A15,IF(Оработка!G29=8,'Таблица типов'!A17,IF(Оработка!G29=9,'Таблица типов'!A19,IF(Оработка!G29=10,'Таблица типов'!A21,IF(Оработка!G29=11,'Таблица типов'!A23,IF(Оработка!G29=12,'Таблица типов'!A25,IF(Оработка!G29=13,'Таблица типов'!A27,IF(Оработка!G29=14,'Таблица типов'!A29,IF(Оработка!G29=15,'Таблица типов'!A31,IF(Оработка!G29=16,'Таблица типов'!A33,IF(Оработка!G29=17,'Таблица типов'!A35,IF(Оработка!G29=18,'Таблица типов'!A37,IF(Оработка!G29=19,'Таблица типов'!A39,IF(Оработка!G29=20,'Таблица типов'!A41,IF(Оработка!G29=21,'Таблица типов'!A43,IF(Оработка!G29=22,'Таблица типов'!A45,IF(Оработка!G29=23,'Таблица типов'!A47,IF(Оработка!G29=24,'Таблица типов'!A49,IF(Оработка!G29=25,'Таблица типов'!A51,IF(Оработка!G29=26,'Таблица типов'!A53,IF(Оработка!G29=27,'Таблица типов'!A55,IF(Оработка!G29=28,'Таблица типов'!A57,IF(Оработка!G29=29,'Таблица типов'!A59,IF(Оработка!G29=30,'Таблица типов'!A61,IF(Оработка!G29=31,'Таблица типов'!A63,IF(Оработка!G29=32,'Таблица типов'!A65))))))))))))))))))))))))))))))))","v":"Человек спокойный, склонный к общению в компаниях. Эстетически одаренный. Скорее созерцатель, чем деятель. Уравновешенный. Безразличен к успехам. Любит жить «как все». Во взаимоотношениях ровен, но глубоко переживать не умеет. Легко избегает конфликтов."}]
[]
[]
[]
[]
[]
[]
[]
[]
[]
[]
[]
[]
[]
["Путь коррекции:"]
[{"$f":"IF(Оработка!G29=1,'Таблица типов'!B3,IF(Оработка!G29=2,'Таблица типов'!B5,IF(Оработка!G29=3,'Таблица типов'!B7,IF(Оработка!G29=4,'Таблица типов'!B9,IF(Оработка!G29=5,'Таблица типов'!B11,IF(Оработка!G29=6,'Таблица типов'!B13,IF(Оработка!G29=7,'Таблица типов'!B15,IF(Оработка!G29=8,'Таблица типов'!B17,IF(Оработка!G29=9,'Таблица типов'!B19,IF(Оработка!G29=10,'Таблица типов'!B21,IF(Оработка!G29=11,'Таблица типов'!B23,IF(Оработка!G29=12,'Таблица типов'!B25,IF(Оработка!G29=13,'Таблица типов'!B27,IF(Оработка!G29=14,'Таблица типов'!B29,IF(Оработка!G29=15,'Таблица типов'!B31,IF(Оработка!G29=16,'Таблица типов'!B33,IF(Оработка!G29=17,'Таблица типов'!B35,IF(Оработка!G29=18,'Таблица типов'!B37,IF(Оработка!G29=19,'Таблица типов'!B39,IF(Оработка!G29=20,'Таблица типов'!B41,IF(Оработка!G29=21,'Таблица типов'!B43,IF(Оработка!G29=22,'Таблица типов'!B45,IF(Оработка!G29=23,'Таблица типов'!B47,IF(Оработка!G29=24,'Таблица типов'!B49,IF(Оработка!G29=25,'Таблица типов'!B51,IF(Оработка!G29=26,'Таблица типов'!B53,IF(Оработка!G29=27,'Таблица типов'!B55,IF(Оработка!G29=28,'Таблица типов'!B57,IF(Оработка!G29=29,'Таблица типов'!B59,IF(Оработка!G29=30,'Таблица типов'!B61,IF(Оработка!G29=31,'Таблица типов'!B63,IF(Оработка!G29=32,'Таблица типов'!B65))))))))))))))))))))))))))))))))","v":"Главная задача – активизировать потребность к деятельности. Найти занятие, способное заинтересовать его (скорее это нечто, связанное с художественными проявлениями). Поощрять успехи. Желательно чаще общаться с подростком, обращая внимание на развитие социального интеллекта."}]
[]
[]
[]
[]
[]
[]
[]
[]
[]
[]
[]
[]
[]
[null,null,null,null,null,"http://eschool.by/psy"]